[Event "*** Titled Tuesday Blitz"]
[Site "Chess.com"]
[Date "2020.04.21"]
[Round "6"]
[White "Sethu0025"]
[Black "Parhamov"]
[Result "1/2-1/2"]
[WhiteElo "2830"]
[BlackElo "3046"]
[TimeControl "180+1"]
[EndTime "11:08:59 PDT"]
[Termination "Game drawn - insufficient material"]

1. d4 {[%clk 0:03:00.9]} 1... d5 {[%clk 0:02:58.4]} 2. c4 {[%clk 0:03:01.1]}
2... dxc4 {[%clk 0:02:58]} 3. Nf3 {[%clk 0:02:58.9]} 3... Nf6 {[%clk 0:02:57.4]}
4. e3 {[%clk 0:02:59.1]} 4... e6 {[%clk 0:02:56.7]} 5. Bxc4 {[%clk 0:02:59.1]}
5... c5 {[%clk 0:02:56.8]} 6. O-O {[%clk 0:02:59.1]} 6... Nc6 {[%clk 0:02:56.1]}
7. Qe2 {[%clk 0:02:51.3]} 7... a6 {[%clk 0:02:54.2]} 8. Rd1 {[%clk 0:02:50.6]}
8... b5 {[%clk 0:02:53.8]} 9. dxc5 {[%clk 0:02:49.8]} 9... Qc7 {[%clk
0:02:53.7]} 10. Bd3 {[%clk 0:02:46.2]} 10... Nb4 {[%clk 0:02:53.2]} 11. e4
{[%clk 0:02:36]} 11... Bxc5 {[%clk 0:02:52]} 12. Nc3 {[%clk 0:02:26.6]} 12...
Bb7 {[%clk 0:02:50]} 13. Be3 {[%clk 0:02:24.6]} 13... Rd8 {[%clk 0:02:41.5]} 14.
Bxc5 {[%clk 0:02:20.5]} 14... Qxc5 {[%clk 0:02:42.4]} 15. a3 {[%clk 0:02:16.1]}
15... Nxd3 {[%clk 0:02:42.1]} 16. Rxd3 {[%clk 0:02:17]} 16... O-O {[%clk
0:02:42.3]} 17. Rad1 {[%clk 0:02:16.4]} 17... Rxd3 {[%clk 0:02:38.8]} 18. Qxd3
{[%clk 0:02:16.5]} 18... h6 {[%clk 0:02:38.9]} 19. Qd4 {[%clk 0:02:04.4]} 19...
Rc8 {[%clk 0:02:38.7]} 20. h3 {[%clk 0:01:58]} 20... a5 {[%clk 0:02:36.1]} 21.
Qxc5 {[%clk 0:01:41.4]} 21... Rxc5 {[%clk 0:02:37]} 22. Rd4 {[%clk 0:01:39.9]}
22... e5 {[%clk 0:02:36.9]} 23. Rd8+ {[%clk 0:01:39.7]} 23... Kh7 {[%clk
0:02:36.6]} 24. Rb8 {[%clk 0:01:29.7]} 24... Bxe4 {[%clk 0:02:35.8]} 25. Rxb5
{[%clk 0:01:29.3]} 25... Rxb5 {[%clk 0:02:35.7]} 26. Nxb5 {[%clk 0:01:30.2]}
26... Bxf3 {[%clk 0:02:36.3]} 27. gxf3 {[%clk 0:01:31.1]} 27... Nd5 {[%clk
0:02:36.8]} 28. Nd6 {[%clk 0:01:28.9]} 28... f6 {[%clk 0:02:34.6]} 29. b3 {[%clk
0:01:29]} 29... Nb6 {[%clk 0:02:26.9]} 30. a4 {[%clk 0:01:27.7]} 30... Kg8
{[%clk 0:02:24.8]} 31. Nb7 {[%clk 0:01:27.8]} 31... Kf7 {[%clk 0:02:19.1]} 32.
Nxa5 {[%clk 0:01:28]} 32... Ke6 {[%clk 0:02:19.4]} 33. Nc4 {[%clk 0:01:22.7]}
33... Nd5 {[%clk 0:02:19.6]} 34. Kf1 {[%clk 0:01:16.6]} 34... Kd7 {[%clk
0:02:19.8]} 35. h4 {[%clk 0:01:16.4]} 35... h5 {[%clk 0:02:18]} 36. Ke1 {[%clk
0:01:09.3]} 36... Kc6 {[%clk 0:02:18.1]} 37. Kd2 {[%clk 0:01:09.2]} 37... Nf4
{[%clk 0:02:17.9]} 38. Ne3 {[%clk 0:01:08.1]} 38... g5 {[%clk 0:02:16.8]} 39.
Nf5 {[%clk 0:01:04]} 39... Ng6 {[%clk 0:02:15.3]} 40. hxg5 {[%clk 0:01:00.5]}
40... fxg5 {[%clk 0:02:16.2]} 41. b4 {[%clk 0:00:54.5]} 41... h4 {[%clk
0:02:14.5]} 42. Ke3 {[%clk 0:00:54]} 42... h3 {[%clk 0:02:13.1]} 43. Ke4 {[%clk
0:00:50.7]} 43... Nh4 {[%clk 0:02:10.2]} 44. Ng3 {[%clk 0:00:48]} 44... h2
{[%clk 0:02:09.4]} 45. Nh1 {[%clk 0:00:42.4]} 45... Kb6 {[%clk 0:01:44.8]} 46.
Kxe5 {[%clk 0:00:32.2]} 46... Nxf3+ {[%clk 0:01:44.4]} 47. Kf5 {[%clk
0:00:32.6]} 47... Nd4+ {[%clk 0:01:29]} 48. Kxg5 {[%clk 0:00:30.7]} 48... Nc2
{[%clk 0:01:22.2]} 49. b5 {[%clk 0:00:29.3]} 49... Nb4 {[%clk 0:01:18]} 50. f4
{[%clk 0:00:28.7]} 50... Nd5 {[%clk 0:01:18.2]} 51. f5 {[%clk 0:00:28.7]} 51...
Nc3 {[%clk 0:01:07.1]} 52. f6 {[%clk 0:00:27.7]} 52... Nxa4 {[%clk 0:01:07.5]}
53. f7 {[%clk 0:00:27]} 53... Nc5 {[%clk 0:01:07.6]} 54. Kf6 {[%clk 0:00:23.9]}
54... Nd7+ {[%clk 0:01:07.7]} 55. Ke6 {[%clk 0:00:17.5]} 55... Nf8+ {[%clk
0:01:07.7]} 56. Ke7 {[%clk 0:00:17.5]} 56... Nh7 {[%clk 0:01:08]} 57. Ke6 {[%clk
0:00:12.1]} 57... Kxb5 {[%clk 0:01:07.3]} 58. Kf5 {[%clk 0:00:12.1]} 58... Kc6
{[%clk 0:01:07.1]} 59. Kg4 {[%clk 0:00:12.1]} 59... Kd6 {[%clk 0:01:06.4]} 60.
Kg3 {[%clk 0:00:12.4]} 60... Ke7 {[%clk 0:01:06.7]} 61. Kxh2 {[%clk 0:00:12.8]}
61... Kxf7 {[%clk 0:01:07.1]} 1/2-1/2

[Event "*** Titled Tuesday Blitz"]
[Site "Chess.com"]
[Date "2020.04.21"]
[Round "6"]
[White "masteryoungK"]
[Black "1f3_2g41-0"]
[Result "0-1"]
[WhiteElo "2389"]
[BlackElo "2191"]
[TimeControl "180+1"]
[EndTime "11:08:59 PDT"]
[Termination "1f3_2g41-0 won by checkmate"]

1. Nf3 {[%clk 0:03:00.9]} 1... d5 {[%clk 0:02:59.4]} 2. g3 {[%clk 0:03:01.4]}
2... Nf6 {[%clk 0:02:59]} 3. Bg2 {[%clk 0:03:02.3]} 3... g6 {[%clk 0:02:58.5]}
4. O-O {[%clk 0:03:03.2]} 4... Bg7 {[%clk 0:02:59]} 5. c4 {[%clk 0:03:03.7]}
5... e6 {[%clk 0:02:58.3]} 6. d4 {[%clk 0:02:59]} 6... O-O {[%clk 0:02:58.2]} 7.
Qc2 {[%clk 0:02:58.4]} 7... Ne4 {[%clk 0:02:57.9]} 8. Nbd2 {[%clk 0:02:57.4]}
8... f5 {[%clk 0:02:53.9]} 9. b3 {[%clk 0:02:53.6]} 9... c5 {[%clk 0:02:52.4]}
10. Bb2 {[%clk 0:02:51.7]} 10... cxd4 {[%clk 0:02:41.8]} 11. Bxd4 {[%clk
0:02:41.6]} 11... Nc6 {[%clk 0:02:38.9]} 12. Bxg7 {[%clk 0:02:40.9]} 12... Kxg7
{[%clk 0:02:37.7]} 13. cxd5 {[%clk 0:02:34.2]} 13... exd5 {[%clk 0:02:36.7]} 14.
b4 {[%clk 0:02:09.5]} 14... a6 {[%clk 0:02:14.1]} 15. a4 {[%clk 0:01:51.9]}
15... Qf6 {[%clk 0:02:11.4]} 16. Qb3 {[%clk 0:01:24.5]} 16... Be6 {[%clk
0:01:42.4]} 17. Rfc1 {[%clk 0:01:23.3]} 17... d4 {[%clk 0:01:29.9]} 18. Qd3
{[%clk 0:01:12.5]} 18... Nc3 {[%clk 0:01:13.4]} 19. b5 {[%clk 0:01:09]} 19...
Nb4 {[%clk 0:01:11.2]} 20. Rxc3 {[%clk 0:00:42.1]} 20... dxc3 {[%clk 0:00:52.5]}
21. Qd4 {[%clk 0:00:42.4]} 21... cxd2 {[%clk 0:00:48.2]} 22. Rb1 {[%clk
0:00:42.3]} 22... Rad8 {[%clk 0:00:32]} 23. Qxf6+ {[%clk 0:00:28.7]} 23... Kxf6
{[%clk 0:00:32.9]} 24. Nxd2 {[%clk 0:00:28.3]} 24... Rxd2 {[%clk 0:00:31]} 25.
Rxb4 {[%clk 0:00:28.8]} 25... a5 {[%clk 0:00:25.5]} 26. Rb1 {[%clk 0:00:25.2]}
26... b6 {[%clk 0:00:25.7]} 27. Bf3 {[%clk 0:00:20.3]} 27... Rfd8 {[%clk
0:00:25.2]} 28. Kg2 {[%clk 0:00:19.6]} 28... R8d4 {[%clk 0:00:24]} 29. Rc1
{[%clk 0:00:18.8]} 29... Rc4 {[%clk 0:00:24]} 30. Ra1 {[%clk 0:00:17.7]} 30...
Bd5 {[%clk 0:00:22]} 31. h4 {[%clk 0:00:15.1]} 31... Bxf3+ {[%clk 0:00:20.8]}
32. Kxf3 {[%clk 0:00:14.6]} 32... Ke5 {[%clk 0:00:21.3]} 33. h5 {[%clk
0:00:14.3]} 33... Rdd4 {[%clk 0:00:20.7]} 34. hxg6 {[%clk 0:00:13.8]} 34... hxg6
{[%clk 0:00:21.6]} 35. Rh1 {[%clk 0:00:13.5]} 35... Kf6 {[%clk 0:00:21.9]} 36.
Rh8 {[%clk 0:00:13.3]} 36... Rxa4 {[%clk 0:00:21.9]} 37. Rb8 {[%clk 0:00:13.7]}
37... Rd6 {[%clk 0:00:22.3]} 38. e4 {[%clk 0:00:13.9]} 38... fxe4+ {[%clk
0:00:22]} 39. Ke3 {[%clk 0:00:14.6]} 39... Rb4 {[%clk 0:00:22.4]} 40. g4 {[%clk
0:00:14.4]} 40... Rd3+ {[%clk 0:00:22.5]} 41. Ke2 {[%clk 0:00:14.4]} 41... Rb2+
{[%clk 0:00:21.8]} 42. Kf1 {[%clk 0:00:14.3]} 42... Rxb5 {[%clk 0:00:21.7]} 43.
Rf8+ {[%clk 0:00:13.3]} 43... Kg5 {[%clk 0:00:21.6]} 44. Re8 {[%clk 0:00:13.8]}
44... Kxg4 {[%clk 0:00:20.6]} 45. Rxe4+ {[%clk 0:00:13.8]} 45... Kf3 {[%clk
0:00:21.2]} 46. Re1 {[%clk 0:00:10.7]} 46... Rbd5 {[%clk 0:00:21.2]} 47. Kg1
{[%clk 0:00:09.2]} 47... Rd1 {[%clk 0:00:21.2]} 48. Kh2 {[%clk 0:00:10.1]} 48...
Rxe1 {[%clk 0:00:20.9]} 49. Kh3 {[%clk 0:00:10.3]} 49... Rh5# {[%clk 0:00:21.5]}
0-1

[Event "*** Titled Tuesday Blitz"]
[Site "Chess.com"]
[Date "2020.04.21"]
[Round "6"]
[White "chenxiaoyuer"]
[Black "IAgrest"]
[Result "1-0"]
[WhiteElo "2131"]
[BlackElo "2242"]
[TimeControl "180+1"]
[EndTime "11:08:59 PDT"]
[Termination "chenxiaoyuer won on time"]

1. e4 {[%clk 0:03:00.8]} 1... e5 {[%clk 0:02:58.9]} 2. Nf3 {[%clk 0:03:00.4]}
2... Nc6 {[%clk 0:02:59.1]} 3. Bb5 {[%clk 0:02:59.9]} 3... a6 {[%clk 0:02:58.8]}
4. Ba4 {[%clk 0:02:59.2]} 4... Nf6 {[%clk 0:02:58.7]} 5. d3 {[%clk 0:02:58.5]}
5... b5 {[%clk 0:02:58.4]} 6. Bb3 {[%clk 0:02:58.2]} 6... Bc5 {[%clk 0:02:59]}
7. c3 {[%clk 0:02:56.9]} 7... d6 {[%clk 0:02:56.1]} 8. O-O {[%clk 0:02:56.1]}
8... O-O {[%clk 0:02:54.7]} 9. Nbd2 {[%clk 0:02:55.6]} 9... Bg4 {[%clk
0:02:50.7]} 10. h3 {[%clk 0:02:54.3]} 10... Bh5 {[%clk 0:02:49.6]} 11. Re1
{[%clk 0:02:54]} 11... Bb6 {[%clk 0:02:24.2]} 12. Nf1 {[%clk 0:02:51.5]} 12...
Na5 {[%clk 0:02:23.3]} 13. Bc2 {[%clk 0:02:49.5]} 13... c5 {[%clk 0:02:23.3]}
14. Bg5 {[%clk 0:02:30.5]} 14... h6 {[%clk 0:02:20.9]} 15. Bh4 {[%clk
0:02:23.2]} 15... c4 {[%clk 0:02:14.8]} 16. Ng3 {[%clk 0:01:33.3]} 16... Bg6
{[%clk 0:01:48.6]} 17. d4 {[%clk 0:01:26.2]} 17... Nc6 {[%clk 0:01:29.7]} 18. d5
{[%clk 0:01:15.7]} 18... Nb8 {[%clk 0:01:28.2]} 19. Nf5 {[%clk 0:00:59.6]} 19...
Bxf5 {[%clk 0:01:25.6]} 20. exf5 {[%clk 0:00:57.2]} 20... Nbd7 {[%clk
0:01:25.1]} 21. Nd2 {[%clk 0:00:54.9]} 21... Nc5 {[%clk 0:01:15.3]} 22. Qf3
{[%clk 0:00:32.3]} 22... Kh8 {[%clk 0:00:43.6]} 23. g4 {[%clk 0:00:28.7]} 23...
Qd7 {[%clk 0:00:29.5]} 24. Bxf6 {[%clk 0:00:23.9]} 24... gxf6 {[%clk 0:00:28.9]}
25. b4 {[%clk 0:00:19.4]} 25... cxb3 {[%clk 0:00:26.1]} 26. axb3 {[%clk
0:00:18.4]} 26... a5 {[%clk 0:00:22.5]} 27. b4 {[%clk 0:00:16.5]} 27... axb4
{[%clk 0:00:20.9]} 28. cxb4 {[%clk 0:00:17.4]} 28... Na4 {[%clk 0:00:13.9]} 29.
Ne4 {[%clk 0:00:16.2]} 29... Kg7 {[%clk 0:00:12.5]} 30. Qg3 {[%clk 0:00:15.7]}
30... Bd4 {[%clk 0:00:11.5]} 31. Rad1 {[%clk 0:00:12.9]} 31... Nb2 {[%clk
0:00:10.3]} 32. Qh4 {[%clk 0:00:11.8]} 32... Qe7 {[%clk 0:00:06.2]} 33. Rb1
{[%clk 0:00:09.2]} 33... Nc4 {[%clk 0:00:04.9]} 34. Ng3 {[%clk 0:00:07.6]} 34...
Rg8 {[%clk 0:00:03.4]} 35. Nh5+ {[%clk 0:00:07.3]} 35... Kf8 {[%clk 0:00:02.7]}
36. Nxf6 {[%clk 0:00:06.7]} 36... Rh8 {[%clk 0:00:02.1]} 37. Re2 {[%clk
0:00:03.7]} 37... Ra3 {[%clk 0:00:01.8]} 38. Rd1 {[%clk 0:00:03.2]} 38... Rf3
{[%clk 0:00:01.4]} 39. Kg2 {[%clk 0:00:02.6]} 1-0

[Event "*** Titled Tuesday Blitz"]
[Site "Chess.com"]
[Date "2020.04.21"]
[Round "6"]
[White "BakaPG"]
[Black "AlexOstrovskiy"]
[Result "0-1"]
[WhiteElo "2698"]
[BlackElo "2509"]
[TimeControl "180+1"]
[EndTime "11:09:00 PDT"]
[Termination "AlexOstrovskiy won by resignation"]

1. e4 {[%clk 0:03:00.9]} 1... c6 {[%clk 0:02:59.9]} 2. d4 {[%clk 0:02:54.8]}
2... d5 {[%clk 0:03:00.8]} 3. Nd2 {[%clk 0:02:54.8]} 3... dxe4 {[%clk
0:03:00.2]} 4. Nxe4 {[%clk 0:02:55.4]} 4... Nf6 {[%clk 0:02:58.5]} 5. Nxf6+
{[%clk 0:02:55.2]} 5... exf6 {[%clk 0:02:59.4]} 6. Be3 {[%clk 0:02:55.2]} 6...
Bd6 {[%clk 0:02:51.2]} 7. Bd3 {[%clk 0:02:54.9]} 7... O-O {[%clk 0:02:46.6]} 8.
c3 {[%clk 0:02:55]} 8... Re8 {[%clk 0:02:38.5]} 9. Ne2 {[%clk 0:02:53.7]} 9...
Nd7 {[%clk 0:02:36.7]} 10. Qc2 {[%clk 0:02:53.7]} 10... h5 {[%clk 0:02:31.4]}
11. O-O-O {[%clk 0:02:53]} 11... Nf8 {[%clk 0:02:28.9]} 12. Ng3 {[%clk
0:02:52.1]} 12... g6 {[%clk 0:02:21.3]} 13. Ne4 {[%clk 0:02:50]} 13... Be6
{[%clk 0:02:05.6]} 14. Kb1 {[%clk 0:02:48.1]} 14... Be7 {[%clk 0:01:47.3]} 15.
Rhe1 {[%clk 0:02:45.7]} 15... b5 {[%clk 0:01:37.5]} 16. f3 {[%clk 0:02:36.7]}
16... a5 {[%clk 0:01:36.1]} 17. Nc5 {[%clk 0:02:35.2]} 17... Bd5 {[%clk
0:01:33]} 18. Be4 {[%clk 0:02:26.5]} 18... f5 {[%clk 0:01:30.8]} 19. Bxd5 {[%clk
0:02:13.5]} 19... Qxd5 {[%clk 0:01:31.7]} 20. Nd3 {[%clk 0:02:13.9]} 20... a4
{[%clk 0:01:29.1]} 21. Bc1 {[%clk 0:02:11.8]} 21... Ne6 {[%clk 0:01:23.6]} 22.
Ne5 {[%clk 0:02:07.6]} 22... b4 {[%clk 0:01:20.8]} 23. c4 {[%clk 0:02:03.8]}
23... Qd6 {[%clk 0:01:20.9]} 24. Qf2 {[%clk 0:01:55.8]} 24... Bf6 {[%clk
0:01:17]} 25. f4 {[%clk 0:01:55]} 25... Rad8 {[%clk 0:01:11.9]} 26. h3 {[%clk
0:01:49.4]} 26... Nxd4 {[%clk 0:01:01.3]} 27. c5 {[%clk 0:01:41.4]} 27... Qxc5
{[%clk 0:00:41.1]} 28. Be3 {[%clk 0:01:37.2]} 28... Bxe5 {[%clk 0:00:41.3]} 29.
Bxd4 {[%clk 0:01:30.4]} 29... Bxd4 {[%clk 0:00:37.8]} 30. Rxe8+ {[%clk
0:01:28.1]} 30... Rxe8 {[%clk 0:00:38.7]} 31. Qxd4 {[%clk 0:01:27.5]} 31... Qxd4
{[%clk 0:00:35.3]} 32. Rxd4 {[%clk 0:01:27.1]} 32... Re4 {[%clk 0:00:27.4]} 33.
Rd6 {[%clk 0:01:06.8]} 33... Rxf4 {[%clk 0:00:23.9]} 34. Rxc6 {[%clk 0:01:06.4]}
34... b3 {[%clk 0:00:23.3]} 35. axb3 {[%clk 0:01:03]} 35... axb3 {[%clk
0:00:24.2]} 36. Kc1 {[%clk 0:01:02]} 36... Rf1+ {[%clk 0:00:21.1]} 37. Kd2
{[%clk 0:01:01.3]} 37... Rf2+ {[%clk 0:00:22]} 38. Kc1 {[%clk 0:00:59.9]} 38...
Rxg2 {[%clk 0:00:18.5]} 39. Rc3 {[%clk 0:01:00.5]} 39... Rg1+ {[%clk 0:00:16.6]}
40. Kd2 {[%clk 0:00:59.7]} 40... Rg2+ {[%clk 0:00:17.5]} 41. Kc1 {[%clk
0:00:59.9]} 41... f4 {[%clk 0:00:18]} 42. Rxb3 {[%clk 0:00:59.4]} 42... Rg3
{[%clk 0:00:18.4]} 43. Rb4 {[%clk 0:00:58.3]} 43... f3 {[%clk 0:00:17.5]} 44.
Rf4 {[%clk 0:00:57.5]} 44... g5 {[%clk 0:00:16.9]} 45. Rf5 {[%clk 0:00:57]}
45... Kg7 {[%clk 0:00:17.5]} 46. Kd2 {[%clk 0:00:56.3]} 46... Kg6 {[%clk
0:00:18]} 47. Rb5 {[%clk 0:00:55.7]} 47... Rxh3 {[%clk 0:00:16.6]} 48. Ke3
{[%clk 0:00:55.6]} 48... g4 {[%clk 0:00:16.3]} 49. b4 {[%clk 0:00:50.4]} 49...
Rh2 {[%clk 0:00:16.6]} 50. Rb6+ {[%clk 0:00:47.7]} 50... Kg5 {[%clk 0:00:15.4]}
51. Rb5+ {[%clk 0:00:47.1]} 51... f5 {[%clk 0:00:14.7]} 52. Rb8 {[%clk
0:00:46.9]} 52... f4+ {[%clk 0:00:14.1]} 53. Kd3 {[%clk 0:00:46.4]} 53... f2
{[%clk 0:00:13.3]} 54. Ke2 {[%clk 0:00:45.8]} 54... f3+ {[%clk 0:00:09.6]} 55.
Kf1 {[%clk 0:00:44.3]} 55... g3 {[%clk 0:00:10]} 56. Rg8+ {[%clk 0:00:42.6]}
56... Kh4 {[%clk 0:00:10.3]} 57. Rxg3 {[%clk 0:00:42.6]} 57... Kxg3 {[%clk
0:00:09.9]} 0-1

[Event "*** Titled Tuesday Blitz"]
[Site "Chess.com"]
[Date "2020.04.21"]
[Round "6"]
[White "ferdipy"]
[Black "KhamzinOlzhas"]
[Result "0-1"]
[WhiteElo "2227"]
[BlackElo "2536"]
[TimeControl "180+1"]
[EndTime "11:09:00 PDT"]
[Termination "KhamzinOlzhas won by resignation"]

1. e4 {[%clk 0:03:00.9]} 1... c5 {[%clk 0:02:59.3]} 2. d4 {[%clk 0:02:59.9]}
2... cxd4 {[%clk 0:02:58.9]} 3. c3 {[%clk 0:02:58.1]} 3... Nf6 {[%clk
0:02:56.1]} 4. e5 {[%clk 0:02:56.5]} 4... Nd5 {[%clk 0:02:55.8]} 5. cxd4 {[%clk
0:02:56.3]} 5... e6 {[%clk 0:02:53.9]} 6. Nf3 {[%clk 0:02:57.2]} 6... b6 {[%clk
0:02:53.6]} 7. a3 {[%clk 0:02:55.6]} 7... Be7 {[%clk 0:02:42.6]} 8. Bd3 {[%clk
0:02:55.1]} 8... Ba6 {[%clk 0:02:41.7]} 9. O-O {[%clk 0:02:54.6]} 9... Bxd3
{[%clk 0:02:38.3]} 10. Qxd3 {[%clk 0:02:55.5]} 10... Nc6 {[%clk 0:02:37.8]} 11.
Nc3 {[%clk 0:02:54.8]} 11... Nxc3 {[%clk 0:02:37.1]} 12. bxc3 {[%clk 0:02:51.3]}
12... d5 {[%clk 0:02:34.5]} 13. a4 {[%clk 0:02:44.6]} 13... O-O {[%clk
0:02:30.7]} 14. Ba3 {[%clk 0:02:43.9]} 14... Bxa3 {[%clk 0:02:27.7]} 15. Rxa3
{[%clk 0:02:44.8]} 15... Na5 {[%clk 0:02:28.3]} 16. Nd2 {[%clk 0:02:44.9]} 16...
Rc8 {[%clk 0:02:27]} 17. f4 {[%clk 0:02:44.9]} 17... f5 {[%clk 0:02:26.4]} 18.
exf6 {[%clk 0:02:43.2]} 18... Rxf6 {[%clk 0:02:24.4]} 19. g3 {[%clk 0:02:37.4]}
19... Nc4 {[%clk 0:02:10.8]} 20. Rb3 {[%clk 0:02:20.2]} 20... Nxd2 {[%clk
0:02:04.3]} 21. Qxd2 {[%clk 0:02:21.1]} 21... Rc4 {[%clk 0:01:48.5]} 22. Rb4
{[%clk 0:02:17]} 22... Qc7 {[%clk 0:01:43.1]} 23. Rxc4 {[%clk 0:01:35.9]} 23...
Qxc4 {[%clk 0:01:44]} 24. Ra1 {[%clk 0:01:36]} 24... Rf7 {[%clk 0:01:38.7]} 25.
a5 {[%clk 0:01:31.3]} 25... bxa5 {[%clk 0:01:31]} 26. Rxa5 {[%clk 0:01:29.8]}
26... g5 {[%clk 0:01:31.7]} 27. Rc5 {[%clk 0:01:23.9]} 27... Qa6 {[%clk
0:01:30.9]} 28. c4 {[%clk 0:00:55]} 28... gxf4 {[%clk 0:01:23.9]} 29. gxf4
{[%clk 0:00:42.6]} 29... Rg7+ {[%clk 0:01:16.5]} 30. Kf2 {[%clk 0:00:42.7]}
30... dxc4 {[%clk 0:01:09.9]} 31. Qe2 {[%clk 0:00:38.7]} 31... Qd6 {[%clk
0:00:54.6]} 32. Qe5 {[%clk 0:00:34]} 32... Qd7 {[%clk 0:00:22.6]} 33. Rxc4
{[%clk 0:00:30.6]} 33... h6 {[%clk 0:00:23]} 34. Rc3 {[%clk 0:00:25]} 34... a5
{[%clk 0:00:17]} 35. Rg3 {[%clk 0:00:21]} 35... Rxg3 {[%clk 0:00:16.9]} 36. hxg3
{[%clk 0:00:21.2]} 36... Qd5 {[%clk 0:00:17]} 37. Qxd5 {[%clk 0:00:16.8]} 37...
exd5 {[%clk 0:00:17.9]} 38. Ke3 {[%clk 0:00:17.2]} 38... Kf7 {[%clk 0:00:18.2]}
39. Kd3 {[%clk 0:00:17.1]} 39... h5 {[%clk 0:00:18.6]} 40. Kc3 {[%clk 0:00:16]}
40... Kf6 {[%clk 0:00:19.2]} 41. Kb3 {[%clk 0:00:15.8]} 41... Kf5 {[%clk
0:00:20]} 42. Ka4 {[%clk 0:00:16.2]} 42... Ke4 {[%clk 0:00:20.7]} 43. g4 {[%clk
0:00:13.4]} 43... hxg4 {[%clk 0:00:19.3]} 44. Kxa5 {[%clk 0:00:12.8]} 44... g3
{[%clk 0:00:19.3]} 45. Kb5 {[%clk 0:00:13.7]} 45... g2 {[%clk 0:00:19.5]} 46. f5
{[%clk 0:00:14.6]} 46... Kxf5 {[%clk 0:00:19.3]} 47. Kc5 {[%clk 0:00:15.5]}
47... Ke4 {[%clk 0:00:20.2]} 0-1

[Event "*** Titled Tuesday Blitz"]
[Site "Chess.com"]
[Date "2020.04.21"]
[Round "6"]
[White "almaguerjm"]
[Black "kingofthenil"]
[Result "1-0"]
[WhiteElo "2353"]
[BlackElo "2518"]
[TimeControl "180+1"]
[EndTime "11:09:04 PDT"]
[Termination "almaguerjm won on time"]

1. d4 {[%clk 0:02:36.2]} 1... Nf6 {[%clk 0:02:56.7]} 2. Bf4 {[%clk 0:02:33.6]}
2... c5 {[%clk 0:02:54.6]} 3. e3 {[%clk 0:02:32.8]} 3... d5 {[%clk 0:02:54.7]}
4. Nc3 {[%clk 0:02:31.8]} 4... a6 {[%clk 0:02:52.7]} 5. dxc5 {[%clk 0:02:30]}
5... e6 {[%clk 0:02:50.5]} 6. b4 {[%clk 0:02:27.9]} 6... b6 {[%clk 0:02:43.9]}
7. cxb6 {[%clk 0:02:21.5]} 7... Bxb4 {[%clk 0:02:41.3]} 8. Ne2 {[%clk
0:02:18.3]} 8... Ne4 {[%clk 0:02:37.4]} 9. Qd4 {[%clk 0:02:14.8]} 9... Nc6
{[%clk 0:02:23.3]} 10. Qxg7 {[%clk 0:02:13.8]} 10... Rf8 {[%clk 0:02:20]} 11.
Bc7 {[%clk 0:01:57.9]} 11... Qe7 {[%clk 0:02:13]} 12. a3 {[%clk 0:01:56.6]}
12... Ba5 {[%clk 0:01:56.3]} 13. b7 {[%clk 0:01:21.5]} 13... Bxc3+ {[%clk
0:01:18.5]} 14. Nxc3 {[%clk 0:01:19.8]} 14... Bxb7 {[%clk 0:01:19.4]} 15. Nxe4
{[%clk 0:01:08.7]} 15... Qxc7 {[%clk 0:01:06.5]} 16. Nf6+ {[%clk 0:00:59.4]}
16... Ke7 {[%clk 0:01:01.5]} 17. Rb1 {[%clk 0:00:59.3]} 17... Na5 {[%clk
0:00:53.4]} 18. Ng4 {[%clk 0:00:47.1]} 18... Qxc2 {[%clk 0:00:43.9]} 19. Qf6+
{[%clk 0:00:44.2]} 19... Ke8 {[%clk 0:00:42.6]} 20. Qb2 {[%clk 0:00:31]} 20...
Qxb2 {[%clk 0:00:35.6]} 21. Rxb2 {[%clk 0:00:31.9]} 21... Ke7 {[%clk 0:00:34.9]}
22. Bd3 {[%clk 0:00:31.6]} 22... Rg8 {[%clk 0:00:21]} 23. f3 {[%clk 0:00:21.9]}
23... h5 {[%clk 0:00:19.7]} 24. Ne5 {[%clk 0:00:19.7]} 24... f6 {[%clk
0:00:19.8]} 25. Ng6+ {[%clk 0:00:20]} 25... Kd6 {[%clk 0:00:20.1]} 26. Nf4
{[%clk 0:00:20.4]} 26... e5 {[%clk 0:00:19.3]} 27. Nxh5 {[%clk 0:00:20.7]} 27...
Bc6 {[%clk 0:00:14.4]} 28. Nxf6 {[%clk 0:00:19.8]} 28... Rab8 {[%clk 0:00:13.2]}
29. Rxb8 {[%clk 0:00:17.6]} 29... Rxb8 {[%clk 0:00:14.1]} 30. O-O {[%clk
0:00:18]} 30... Rb3 {[%clk 0:00:12]} 31. Bxa6 {[%clk 0:00:18.1]} 31... Rxa3
{[%clk 0:00:12.9]} 32. Ng4 {[%clk 0:00:18.2]} 32... Nb3 {[%clk 0:00:12.8]} 33.
Bc8 {[%clk 0:00:15.8]} 33... Nd2 {[%clk 0:00:11.2]} 34. Rd1 {[%clk 0:00:16.1]}
34... Nc4 {[%clk 0:00:11.5]} 35. Bf5 {[%clk 0:00:16]} 35... Nxe3 {[%clk
0:00:10.7]} 36. Nxe3 {[%clk 0:00:16.9]} 36... Rxe3 {[%clk 0:00:11.3]} 37. h4
{[%clk 0:00:17.5]} 37... e4 {[%clk 0:00:06.6]} 38. Bxe4 {[%clk 0:00:15.6]} 38...
Ra3 {[%clk 0:00:02.7]} 39. h5 {[%clk 0:00:15.6]} 39... Ra8 {[%clk 0:00:01.8]}
40. Bg6 {[%clk 0:00:13.3]} 40... Rh8 {[%clk 0:00:02.7]} 41. Kf2 {[%clk
0:00:13.5]} 41... Ke5 {[%clk 0:00:03.1]} 42. g4 {[%clk 0:00:13.9]} 42... d4
{[%clk 0:00:01.7]} 43. Kg3 {[%clk 0:00:14.1]} 43... Rf8 {[%clk 0:00:01.3]} 44.
f4+ {[%clk 0:00:12.1]} 1-0